fUSD/lending_fUSD_20240330
["ID","MTS","AMOUNT","RATE_DAILY","PERIOD"]
[321058436,1711840251984,-500.0,0.00041369,4]
[321058437,1711840251994,-500.0,0.00041369,4]
[321058438,1711840252004,-500.0,0.00041369,4]
[321058439,1711840252015,-500.0,0.00041369,4]
[321058440,1711840252025,-500.0,0.00041369,4]
[321058441,1711840252034,-500.0,0.00041369,4]
[321058442,1711840252048,-500.0,0.00041369,4]
[321058443,1711840252058,-500.0,0.00041369,4]
[321058444,1711840252068,-500.0,0.00041369,4]
[321058445,1711840252078,-682.0,0.00041369,4]
[321058446,1711840252089,-500.0,0.00041369,4]
[321058447,1711840252100,-500.0,0.00041369,4]
[321058448,1711840252110,-522.8,0.00041369,4]
[321058449,1711840252120,-500.0,0.00041369,4]
[321058450,1711840252131,-532.57,0.00041369,4]
[321058451,1711840252141,-500.0,0.00041369,4]
[321058452,1711840252151,-500.0,0.00041369,4]
[321058453,1711840252161,-586.02,0.00041369,4]
[321058454,1711840252171,-500.0,0.00041369,4]
[321058455,1711840252181,-500.0,0.00041369,4]
[321058456,1711840252191,-500.0,0.00041369,4]
[321058457,1711840252202,-500.0,0.00041369,4]
[321058458,1711840252212,-500.0,0.00041369,4]
[321058459,1711840252222,-500.0,0.00041369,4]
[321058460,1711840252232,-500.0,0.00041369,4]
[321058461,1711840252241,-550.7,0.00041369,4]
[321058462,1711840252251,-500.0,0.00041369,4]
[321058463,1711840252262,-500.0,0.00041369,4]
[321058464,1711840252271,-500.0,0.00041369,4]
[321058465,1711840252281,-500.0,0.00041369,4]
[321058466,1711840252291,-500.0,0.00041369,4]
[321058467,1711840252301,-500.0,0.00041369,4]
[321058468,1711840252311,-501.77,0.00041369,4]
[321058469,1711840252320,-500.0,0.00041369,4]
[321058470,1711840252330,-273.17275257,0.00041369,4]
[321058471,1711840252340,-500.0,0.00041369,4]
[321058472,1711840252349,-500.0,0.00041369,4]
[321058473,1711840252359,-500.0,0.00041369,4]
[321058474,1711840252369,-500.0,0.00041369,4]
[321058475,1711840252379,-656.09,0.00041369,4]
[321058476,1711840252389,-500.0,0.00041369,4]
[321058477,1711840252398,-500.0,0.00041369,4]
[321058478,1711840252408,-500.0,0.00041369,4]
[321058479,1711840252418,-500.0,0.00041369,4]
[321058480,1711840252427,-500.0,0.00041369,4]
[321058481,1711840252437,-500.0,0.00041369,4]
[321058482,1711840252446,-580.76932158,0.00041369,4]
[321058483,1711840252456,-500.0,0.00041369,4]
[321058484,1711840252466,-500.0,0.00041369,4]
[321058485,1711840252475,-556.86,0.00041369,4]
[321058486,1711840252485,-500.0,0.00041369,2]
[321058487,1711840252495,-500.0,0.00041369,4]
[321058488,1711840252505,-500.0,0.00041369,4]
[321058489,1711840252515,-500.0,0.00041369,4]
[321058490,1711840252525,-500.0,0.00041369,4]
[321058491,1711840252538,-500.0,0.00041369,4]
[321058492,1711840252548,-500.0,0.00041369,4]
[321058493,1711840252558,-500.0,0.00041369,4]
[321058494,1711840252568,-500.0,0.00041369,4]
[321058495,1711840252577,-500.0,0.00041369,4]
[321058496,1711840252587,-500.0,0.00041369,4]
[321058497,1711840252596,-500.0,0.00041369,4]
[321058498,1711840252606,-500.0,0.00041369,4]
[321058499,1711840252615,-500.0,0.00041369,4]
[321058500,1711840252625,-500.0,0.00041369,4]
[321058501,1711840252634,-500.0,0.00041369,4]
[321058502,1711840252644,-500.0,0.00041369,4]
[321058503,1711840252653,-500.0,0.00041369,4]
[321058504,1711840252663,-500.0,0.00041369,4]
[321058505,1711840252673,-500.0,0.00041369,4]
[321058506,1711840252682,-500.0,0.00041369,4]
[321058507,1711840252692,-500.0,0.00041369,2]
[321058508,1711840252702,-500.0,0.00041369,4]
[321058509,1711840252711,-500.0,0.00041369,4]
[321058510,1711840252722,-500.0,0.00041369,4]
[321058511,1711840252731,-500.0,0.00041369,4]
[321058512,1711840252741,-500.0,0.00041369,4]
[321058513,1711840252750,-500.0,0.00041369,4]
[321058514,1711840252759,-500.0,0.00041369,4]
[321058515,1711840252769,-500.0,0.00041369,4]
[321058516,1711840252778,-500.0,0.00041369,4]
[321058517,1711840252788,-286.4746604,0.00041369,4]
[321058518,1711840252798,-500.0,0.00041369,4]
[321058519,1711840252808,-500.0,0.00041369,4]
[321058520,1711840252817,-500.0,0.00041369,4]
[321058521,1711840252827,-500.0,0.00041369,4]
[321058522,1711840252836,-642.33106091,0.00041369,4]
[321058523,1711840252846,-500.0,0.00041369,4]
[321058524,1711840252855,-500.0,0.00041369,4]
[321058525,1711840252866,-500.0,0.00041369,4]
[321058526,1711840252875,-500.0,0.00041369,4]
[321058527,1711840252884,-500.0,0.00041369,4]
[321058528,1711840252894,-500.0,0.00041369,4]
[321058529,1711840252903,-500.0,0.00041369,4]
[321058530,1711840252912,-500.0,0.00041369,4]
[321058531,1711840252922,-500.0,0.00041369,4]
[321058532,1711840252931,-405.4406576,0.00041369,4]
[321058533,1711840252941,-500.0,0.00041369,4]
[321058534,1711840252951,-500.0,0.00041369,4]
[321058535,1711840252960,-500.0,0.00041369,4]
[321058536,1711840252970,-500.0,0.00041369,4]
[321058537,1711840252979,-169.03734149,0.00041369,4]
[321058538,1711840252989,-500.0,0.00041369,4]
[321058539,1711840252998,-500.0,0.00041369,4]
[321058540,1711840253009,-500.0,0.00041369,4]
[321058541,1711840253018,-500.0,0.00041369,4]
[321058542,1711840253027,-500.0,0.00041369,4]
[321058543,1711840253037,-1698.95,0.00041369,4]
[321058544,1711840253051,-578.15607872,0.00041369,4]
[321058545,1711840253061,-500.0,0.00041369,4]
[321058546,1711840253071,-500.0,0.00041369,4]
[321058547,1711840253081,-500.0,0.00041369,4]
[321058548,1711840253091,-500.0,0.00041369,4]
[321058549,1711840253100,-283.63519041,0.00041369,4]
[321058550,1711840253110,-616.23,0.00041369,4]
[321058551,1711840253121,-500.0,0.00041369,4]
[321058552,1711840253131,-742.31,0.00041369,4]
[321058553,1711840253140,-500.0,0.00041369,4]
[321058554,1711840253150,-500.0,0.00041369,4]
[321058555,1711840253159,-500.0,0.00041369,4]
[321058556,1711840253169,-500.0,0.00041369,4]
[321058557,1711840253179,-211.08443148,0.00041369,4]
[321058558,1711840253189,-500.0,0.00041369,4]
[321058559,1711840253199,-500.0,0.00041369,2]
[321058560,1711840253209,-500.0,0.00041369,4]
[321058561,1711840253218,-509.91,0.00041369,4]
[321058562,1711840253228,-500.0,0.00041369,4]
[321058563,1711840253238,-1221.52,0.00041369,4]
[321058564,1711840253247,-500.0,0.00041369,4]
[321058565,1711840253257,-500.0,0.00041369,4]
[321058566,1711840253267,-583.88,0.00041369,4]
[321058567,1711840253276,-500.0,0.00041369,4]
[321058568,1711840253286,-287.26488123,0.00041369,4]
[321058569,1711840253295,-500.0,0.00041369,4]
[321058570,1711840253305,-546.5,0.00041369,4]
[321058571,1711840253314,-500.0,0.00041369,4]
[321058572,1711840253323,-500.0,0.00041369,4]
[321058573,1711840253333,-500.0,0.00041369,4]
[321058574,1711840253342,-185.18,0.00041369,4]
[321058575,1711840253351,-500.0,0.00041369,4]
[321058576,1711840253360,-500.0,0.00041369,4]
[321058577,1711840253369,-500.0,0.00041369,4]
[321058578,1711840253379,-500.0,0.00041369,4]
[321058579,1711840253388,-500.0,0.00041369,4]
[321058580,1711840253397,-500.0,0.00041369,4]
[321058581,1711840253406,-500.0,0.00041369,4]
[321058582,1711840253415,-1100.67,0.00041369,4]
[321058583,1711840253424,-628.84,0.00041369,4]
[321058584,1711840253433,-381.08,0.00041369,4]
[321058585,1711840253443,-500.0,0.00041369,4]
[321058586,1711840253452,-500.0,0.00041369,4]
[321058587,1711840253461,-500.0,0.00041369,4]
[321058588,1711840253471,-500.0,0.00041369,4]
[321058589,1711840253480,-487.06049363,0.00041369,4]
[321058590,1711840253489,-500.0,0.00041369,4]
[321058591,1711840253498,-500.0,0.00041369,4]
[321058592,1711840253507,-537.58318326,0.00041369,4]
[321058593,1711840253517,-500.0,0.00041369,4]
[321058594,1711840253526,-500.0,0.00041369,4]
[321058595,1711840253535,-500.0,0.00041369,4]
[321058596,1711840253544,-500.0,0.00041369,4]
[321058597,1711840253553,-288.12162097,0.00041369,4]
[321058598,1711840253562,-466.32217119,0.00041369,4]
[321058599,1711840253571,-500.0,0.00041369,4]
[321058600,1711840253580,-500.0,0.00041369,4]
[321058601,1711840253591,-1419.83,0.00041369,4]
[321058602,1711840253601,-500.0,0.00041369,4]
[321058603,1711840253610,-500.0,0.00041369,4]
[321058604,1711840253619,-500.0,0.00041369,4]
[321058605,1711840253629,-500.0,0.00041369,4]
[321058606,1711840253638,-238.20630712,0.00041369,4]
[321058607,1711840253647,-535.93,0.00041369,4]
[321058608,1711840253656,-500.0,0.00041369,4]
[321058609,1711840253666,-500.0,0.00041369,4]
[321058610,1711840253675,-500.0,0.00041369,4]
[321058611,1711840253684,-405.61307446,0.00041369,4]
[321058612,1711840253694,-500.0,0.00041369,4]
[321058613,1711840253703,-191.88515823,0.00041369,4]
[321058614,1711840253713,-573.01,0.00041369,4]
[321058615,1711840253722,-500.0,0.00041369,4]
[321058616,1711840253732,-500.0,0.00041369,4]
[321058617,1711840253741,-500.0,0.00041369,4]
[321058618,1711840253750,-500.0,0.00041369,4]
[321058619,1711840253759,-500.0,0.00041369,4]
[321058620,1711840253769,-2246.56,0.00041369,4]
[321058621,1711840253778,-647.98,0.00041369,4]
[321058622,1711840253787,-500.0,0.00041369,4]
[321058623,1711840253797,-500.0,0.00041369,4]
[321058624,1711840253806,-1012.71,0.00041369,4]
[321058625,1711840253816,-500.0,0.00041369,4]
[321058626,1711840253825,-4414.32,0.00041369,4]
[321058627,1711840253835,-603.79,0.00041369,4]
[321058628,1711840253844,-500.0,0.00041369,4]
[321058629,1711840253853,-500.0,0.00041369,4]
[321058630,1711840253863,-629.16,0.00041369,4]
[321058631,1711840253873,-603.54,0.00041369,4]
[321058632,1711840253882,-1878.55,0.00041369,4]
[321058633,1711840253892,-194.27726276,0.00041369,4]
[321058634,1711840253902,-500.0,0.00041369,4]
[321058635,1711840253912,-18463.9,0.00041369,4]
[321058636,1711840253921,-500.0,0.00041369,4]
[321058637,1711840253932,-506.62,0.00041369,4]
[321058638,1711840253942,-500.0,0.00041369,4]
[321058639,1711840253951,-500.0,0.00041369,4]
[321058640,1711840253961,-554.27015034,0.00041369,4]
[321058641,1711840253971,-500.0,0.00041369,4]
[321058642,1711840253981,-2271.84,0.00041369,4]
[321058643,1711840253990,-500.0,0.00041369,4]
[321058644,1711840254189,-500.0,0.00041369,4]
[321058645,1711840254199,-1686.53,0.00041369,4]
[321058646,1711840254209,-2436.12,0.00041369,4]
[321058647,1711840254218,-500.0,0.00041369,4]
[321058648,1711840254227,-500.0,0.00041369,4]
[321058649,1711840254237,-3059.2,0.00041369,4]
[321058650,1711840254246,-3637.69,0.00041369,4]
[321058651,1711840254255,-9970.42,0.00041369,4]
[321058652,1711840254264,-2005.74,0.00041369,4]
[321058653,1711840254274,-3677.67,0.00041369,4]
[321058654,1711840254283,-500.0,0.00041369,4]
[321058655,1711840254292,-680.16,0.00041369,4]
[321058656,1711840254301,-500.0,0.00041369,4]
[321058657,1711840254310,-500.0,0.00041369,4]
[321058658,1711840254319,-807.18,0.00041369,4]
[321058659,1711840254329,-945.38,0.00041369,4]
[321058660,1711840254338,-500.0,0.00041369,4]
[321058661,1711840254347,-782.2,0.00041369,4]
[321058662,1711840254358,-500.0,0.00041369,4]
[321058663,1711840254367,-500.0,0.00041369,4]
[321058664,1711840254377,-2166.61,0.00041369,4]
[321058665,1711840254387,-500.0,0.00041369,4]
[321058666,1711840254397,-2962.31,0.00041369,4]
[321058667,1711840254407,-500.0,0.00041369,4]
[321058668,1711840254417,-500.0,0.00041369,4]
[321058669,1711840254426,-500.0,0.00041369,4]
[321058670,1711840254437,-1393.17,0.00041369,4]
[321058671,1711840254446,-572.2,0.00041369,4]
[321058672,1711840254456,-500.0,0.00041369,4]
[321058673,1711840254465,-500.0,0.00041369,4]
[321058674,1711840254476,-637.01,0.00041369,4]
[321058675,1711840254485,-1950.36,0.00041369,4]
[321058676,1711840254494,-500.0,0.00041369,4]
[321058677,1711840254504,-500.0,0.00041369,4]
[321058678,1711840254514,-562.19,0.00041369,4]
[321058679,1711840254523,-2051.53,0.00041369,4]
[321058680,1711840254532,-500.0,0.00041369,4]
[321058681,1711840254541,-500.0,0.00041369,4]
[321058682,1711840254551,-751.0,0.00041369,4]
[321058683,1711840254560,-500.0,0.00041369,4]
[321058684,1711840254570,-500.0,0.00041369,4]
[321058685,1711840254579,-539.58,0.00041369,4]
[321058686,1711840254589,-500.0,0.00041369,4]
[321058687,1711840254599,-500.0,0.00041369,4]
[321058688,1711840254609,-500.0,0.00041369,4]
[321058689,1711840254618,-727.08,0.00041369,4]
[321058690,1711840254628,-1074.1,0.00041369,4]
[321058691,1711840254637,-500.0,0.00041369,4]
[321058692,1711840254647,-500.0,0.00041369,4]
[321058693,1711840254656,-11746.1,0.00041369,4]
[321058694,1711840254665,-590.49,0.00041369,4]
[321058695,1711840254675,-500.0,0.00041369,4]
[321058696,1711840254684,-531.75118801,0.00041369,4]
[321058697,1711840254694,-500.0,0.00041369,4]
[321058698,1711840254703,-540.8,0.00041369,4]
[321058699,1711840254712,-1802.11,0.00041369,4]
[321058700,1711840254722,-2393.19,0.00041369,4]
[321058701,1711840254731,-500.0,0.00041369,4]
[321058702,1711840254741,-921.25,0.00041369,4]
[321058703,1711840254751,-6872.19,0.00041369,4]
[321058704,1711840254760,-1452.25,0.00041369,4]
[321058705,1711840254769,-500.0,0.00041369,4]
[321058706,1711840254779,-1011.42,0.00041369,4]
[321058707,1711840254788,-1663.81,0.00041369,4]
[321058708,1711840254797,-500.0,0.00041369,4]
[321058709,1711840254806,-1727.44,0.00041369,4]
[321058710,1711840254815,-500.0,0.00041369,4]
[321058711,1711840254824,-696.25,0.00041369,4]
[321058712,1711840254834,-500.0,0.00041369,4]
[321058713,1711840254843,-500.0,0.00041369,4]
[321058714,1711840254852,-500.0,0.00041369,4]
[321058715,1711840254861,-1302.95,0.00041369,4]
[321058716,1711840254870,-775.27,0.00041369,4]
[321058717,1711840254879,-500.0,0.00041369,4]
[321058718,1711840254888,-500.0,0.00041369,4]
[321058719,1711840254898,-500.0,0.00041369,4]
[321058720,1711840254907,-500.0,0.00041369,4]
[321058721,1711840254916,-500.0,0.00041369,4]
[321058722,1711840254925,-500.0,0.00041369,4]
[321058723,1711840254935,-500.0,0.00041369,4]
[321058724,1711840254945,-2634.33,0.00041369,4]
[321058725,1711840254954,-500.0,0.00041369,4]
[321058726,1711840254963,-1036.18,0.00041369,4]
[321058727,1711840254972,-3392.13,0.00041369,4]
[321058728,1711840254982,-1105.96,0.00041369,4]
[321058729,1711840254991,-500.0,0.00041369,2]
[321058730,1711840255001,-500.0,0.00041369,4]
[321058731,1711840255010,-1117.8,0.00041369,4]
[321058732,1711840255019,-500.0,0.00041369,4]
[321058733,1711840255028,-500.0,0.00041369,4]
[321058734,1711840255037,-3019.5,0.00041369,4]
[321058735,1711840255051,-500.0,0.00041369,4]
[321058736,1711840255060,-500.0,0.00041369,4]
[321058737,1711840255069,-3861.9,0.00041369,4]
[321058738,1711840255078,-500.0,0.00041369,4]
[321058739,1711840255089,-680.28,0.00041369,4]
[321058740,1711840255098,-500.0,0.00041369,4]
[321058741,1711840255108,-500.0,0.00041369,4]
[321058742,1711840255119,-1388.99,0.00041369,4]
[321058743,1711840255130,-500.0,0.00041369,4]
[321058744,1711840255139,-1476.07,0.00041369,4]
[321058745,1711840255148,-1471.68,0.00041369,4]
[321058746,1711840255157,-3076.33,0.00041369,4]
[321058747,1711840255166,-500.0,0.00041369,4]
[321058748,1711840255175,-3746.79,0.00041369,4]
[321058749,1711840255184,-500.0,0.00041369,4]
[321058750,1711840255193,-500.0,0.00041369,4]
[321058751,1711840255202,-500.0,0.00041369,4]
[321058752,1711840255211,-904.71,0.00041369,4]
[321058753,1711840255222,-850.43,0.00041369,4]
[321058754,1711840255233,-505.63,0.00041369,4]
[321058755,1711840255242,-500.0,0.00041369,4]
[321058756,1711840255251,-500.0,0.00041369,4]
[321058757,1711840255260,-1036.53,0.00041369,4]
[321058758,1711840255269,-500.0,0.00041369,4]
[321058759,1711840255278,-433.51074773,0.00041369,4]
[321058760,1711840255288,-1508.62,0.00041369,4]
[321058761,1711840255297,-1040.55,0.00041369,4]
[321058762,1711840255306,-500.0,0.00041369,4]
[321058763,1711840255315,-2432.62,0.00041369,4]
[321058764,1711840255324,-206.02050222,0.00041369,4]
[321058765,1711840255333,-500.0,0.00041369,4]
[321058766,1711840255342,-771.93,0.00041369,4]
[321058767,1711840255351,-3518.03,0.00041369,4]
[321058768,1711840255361,-621.12,0.00041369,4]
[321058769,1711840255371,-2972.99,0.00041369,4]
[321058770,1711840255380,-619.51,0.00041369,4]
[321058771,1711840255390,-500.0,0.00041369,4]
[321058772,1711840255399,-500.0,0.00041369,4]
[321058773,1711840255408,-880.03,0.00041369,4]
[321058774,1711840255417,-2114.81,0.00041369,4]
[321058775,1711840255427,-500.0,0.00041369,4]
[321058776,1711840255436,-1000.0,0.00041369,4]
[321058777,1711840255446,-500.0,0.00041369,4]
[321058778,1711840255455,-1006.8,0.00041369,4]
[321058779,1711840255465,-500.0,0.00041369,4]
[321058780,1711840255474,-500.0,0.00041369,4]
[321058781,1711840255484,-667.76,0.00041369,4]
[321058782,1711840255493,-933.69,0.00041369,4]
[321058783,1711840255503,-500.0,0.00041369,4]
[321058784,1711840255512,-801.7,0.00041369,4]
[321058785,1711840255522,-500.0,0.00041369,4]
[321058786,1711840255532,-500.0,0.00041369,4]
[321058787,1711840255541,-1771.7,0.00041369,4]
[321058788,1711840255551,-500.0,0.00041369,4]
[321058789,1711840255561,-500.0,0.00041369,4]
[321058790,1711840255570,-1554.81,0.00041369,4]
[321058791,1711840255581,-831.86,0.00041369,4]
[321058792,1711840255591,-500.0,0.00041369,4]
[321058793,1711840255600,-643.61676327,0.00041369,4]
[321058794,1711840255610,-500.0,0.00041369,4]
[321058795,1711840255620,-540.6,0.00041369,4]
[321058796,1711840255630,-658.23,0.00041369,4]
[321058797,1711840255639,-500.0,0.00041369,4]
[321058798,1711840255649,-500.0,0.00041369,4]
[321058799,1711840255659,-500.0,0.00041369,4]
[321058800,1711840255669,-626.91,0.00041369,4]
[321058801,1711840255679,-500.0,0.00041369,4]
[321058802,1711840255688,-500.0,0.00041369,4]
[321058803,1711840255698,-718.65,0.00041369,4]
[321058804,1711840255708,-646.02916928,0.00041369,15]
[321058805,1711840255717,-657.81,0.00041369,4]
[321058806,1711840255728,-1094.07,0.00041369,4]
[321058807,1711840255738,-500.0,0.00041369,4]
[321058808,1711840255747,-500.0,0.00041369,4]
[321058809,1711840255757,-3251.0,0.00041369,4]
[321058810,1711840255766,-577.29,0.00041369,4]
[321058811,1711840255775,-1223.45,0.00041369,4]
[321058812,1711840255785,-500.0,0.00041369,4]
[321058813,1711840255794,-2119.04,0.00041369,4]
[321058814,1711840255804,-500.0,0.00041369,4]
[321058815,1711840255813,-500.0,0.00041369,2]
[321058816,1711840255822,-632.48584989,0.00041369,4]
[321058817,1711840255831,-748.38,0.00041369,4]
[321058818,1711840255841,-500.0,0.00041369,4]
[321058819,1711840255850,-500.0,0.00041369,4]
[321058820,1711840255859,-500.0,0.00041369,4]
[321058821,1711840255869,-500.0,0.00041369,4]
[321058822,1711840255879,-3468.99,0.00041369,4]
[321058823,1711840255888,-3480.89,0.00041369,4]
[321058824,1711840255897,-500.0,0.00041369,4]
[321058825,1711840255907,-500.0,0.00041369,4]
[321058826,1711840255916,-500.0,0.00041369,4]
[321058827,1711840255925,-890.5,0.00041369,4]
[321058828,1711840255934,-2428.29,0.00041369,4]
[321058829,1711840255943,-500.0,0.00041369,4]
[321058830,1711840255953,-715.2,0.00041369,4]
[321058831,1711840255962,-500.0,0.00041369,4]
[321058832,1711840255971,-500.0,0.00041369,4]
[321058833,1711840255980,-500.0,0.00041369,4]
[321058834,1711840255990,-544.43671886,0.00041369,4]
[321058835,1711840255999,-820.93,0.00041369,4]
[321058836,1711840256009,-2195.61,0.00041369,4]
[321058837,1711840256019,-500.0,0.00041369,4]
[321058838,1711840256028,-500.0,0.00041369,4]
[321058839,1711840256038,-500.0,0.00041369,4]
[321058840,1711840256050,-500.0,0.00041369,4]
[321058841,1711840256060,-5156.18,0.00041369,4]
[321058842,1711840256070,-500.0,0.00041369,4]
[321058843,1711840256079,-743.46,0.00041369,4]
[321058844,1711840256090,-93000.0,0.0004137,30]
[321058845,1711840256099,-180.0,0.00041374,2]
[321058846,1711840256109,-653.0,0.000414,15]
[321058847,1711840256120,-653.0,0.0004141,15]
[321058848,1711840256129,-653.0,0.0004142,15]
[321058849,1711840256139,-157.59,0.00041452,15]
[321058850,1711840256148,-523.43956308,0.0004147,10]
[321058851,1711840256157,-10324.5,0.000415,4]
[321058852,1711840256167,-209.0,0.000415,2]
[321058853,1711840256176,-638.55605632,0.00041513,34]
[321058854,1711840256186,-1075.17358606,0.0004152,35]
[321058855,1711840256195,-1250.0,0.0004152,39]
[321058856,1711840256205,-1250.0,0.0004152,41]
[321058857,1711840256214,-1250.0,0.0004152,43]
[321058858,1711840256224,-1250.00000001,0.0004152,45]
[321058859,1711840256234,-5000.0,0.0004154,2]
[321058860,1711840256243,-6049.3199833,0.0004154,2]
[321058861,1711840256252,-5953.0560476,0.00041572,2]
[321058862,1711840256262,-13548.29164145,0.00041585,2]
[321058863,1711840256272,-35200.0,0.000416,15]
[321058864,1711840256281,-638.55605632,0.0004161,34]
[321058865,1711840256291,-150.5,0.00041613,15]
[321058866,1711840256301,-2062.3011536,0.00041615,2]
[321058867,1711840256311,-584.3616802,0.00041615,2]
[321058868,1711840256320,-507.0,0.00041617,7]
[321058869,1711840256330,-505.0,0.0004162,15]
[321058870,1711840256339,-150.5,0.00041623,15]
[321058871,1711840256348,-505.0,0.0004163,15]
[321058872,1711840256358,-150.5,0.00041633,15]
[321058873,1711840256368,-505.0,0.0004164,15]
[321058874,1711840256377,-206.96186453,0.00041642,4]
[321058875,1711840256386,-155.0,0.00041642,4]
[321058876,1711840256396,-188.12677449,0.00041642,60]
[321058877,1711840256405,-500.0,0.00041642,4]
[321058878,1711840256464,-500.0,0.00041642,4]
[321058879,1711840256474,-150.0,0.00041642,7]
[321058880,1711840256483,-500.0,0.00041643,4]
[321058881,1711840256492,-500.0,0.00041643,4]
[321058882,1711840256501,-500.0,0.00041643,4]
[321058883,1711840256510,-500.0,0.00041643,4]
[321058884,1711840256520,-500.0,0.00041643,4]
[321058885,1711840256528,-500.0,0.00041643,4]
[321058886,1711840256537,-500.0,0.00041643,4]
[321058887,1711840256546,-500.0,0.00041643,4]
[321058888,1711840256556,-500.0,0.00041643,4]
[321058889,1711840256565,-500.0,0.00041643,4]
[321058890,1711840256574,-500.0,0.00041643,4]
[321058891,1711840256584,-500.0,0.00041643,4]
[321058892,1711840256593,-624.13,0.00041643,4]
[321058893,1711840256603,-500.0,0.00041643,4]
[321058894,1711840256612,-626.80325115,0.00041643,4]
[321058895,1711840256621,-500.0,0.00041643,4]
[321058896,1711840256630,-500.0,0.00041643,4]
[321058897,1711840256639,-500.0,0.00041643,4]
[321058898,1711840256649,-500.0,0.00041643,4]
[321058899,1711840256659,-500.0,0.00041643,4]
[321058900,1711840256669,-500.0,0.00041643,4]
[321058901,1711840256678,-500.0,0.00041643,4]
[321058902,1711840256687,-500.0,0.00041643,4]
[321058903,1711840256697,-500.0,0.00041643,4]
[321058904,1711840256707,-500.0,0.00041643,4]
[321058905,1711840256716,-558.0116083,0.00041643,4]
[321058906,1711840256728,-163.18458117,0.00041643,4]
[321058907,1711840256737,-500.0,0.00041643,4]
[321058908,1711840256746,-3743.32,0.00041643,4]
[321058909,1711840256755,-500.0,0.00041643,4]
[321058910,1711840256764,-500.0,0.00041643,4]
[321058911,1711840256773,-500.0,0.00041643,4]
[321058912,1711840256782,-721.77,0.00041643,4]
[321058913,1711840256791,-500.0,0.00041643,4]
[321058914,1711840256801,-500.0,0.00041643,4]
[321058915,1711840256810,-561.22556815,0.00041643,4]
[321058916,1711840256819,-500.0,0.00041643,4]
[321058917,1711840256829,-575.6408038,0.00041643,4]
[321058918,1711840256838,-500.0,0.00041643,4]
[321058919,1711840256848,-500.0,0.00041643,4]
[321058920,1711840256857,-500.0,0.00041643,4]
[321058921,1711840256866,-500.0,0.00041643,4]
[321058922,1711840256875,-682.0,0.00041643,4]
[321058923,1711840256884,-500.0,0.00041643,4]
[321058924,1711840256894,-500.0,0.00041643,4]
[321058925,1711840256904,-522.8,0.00041643,4]
[321058926,1711840256913,-384.45630268,0.00041643,4]
[321058927,1711840256923,-532.57,0.00041643,4]
[321058928,1711840256933,-500.0,0.00041643,4]
[321058929,1711840256942,-500.0,0.00041643,4]
[321058930,1711840256952,-586.02,0.00041643,4]
[321058931,1711840256961,-500.0,0.00041643,4]
[321058932,1711840256971,-500.0,0.00041643,4]
[321058933,1711840256981,-500.0,0.00041643,4]
[321058934,1711840256991,-500.0,0.00041643,4]
[321058935,1711840257002,-500.0,0.00041643,4]